Cogmind - Beta 11.1 @@@ ROGUE MODE // 2022.12.11 @ 00:33:05 Player: L1l7 Result: Self-destructed Performance ------------- Evolutions (1) 500 Regions Visited (3) 600 Robots Destroyed (15) 75 Value Destroyed (260) 260 Prototype IDs (1) 20 Alien Tech Used (0) 0 Bonus (0) 0 TOTAL SCORE: 1455 Bonus ------- None Cogmind --------- Core Integrity 128/400 Matter 300/300 Energy 100/100 System Corruption 3% Temperature Cool (0) Movement Core (150) Ox2 Location -9/Mines Parts ------- > --- POWER (1) -------- (None) > --- PROPULSION (2) --- (None) > --- UTILITY (4) ------ Improved Heat Sink Small Storage Unit Improved Terrain Scanner > --- WEAPON (2) ------- (None) > --- INVENTORY (8) ---- Light Ion Engine Improved Ion Engine Aluminum Leg Beam Rifle Ion Cannon Ion Cannon Improved Grenade Launcher Peak State ------------ > --- POWER ------------ Light Ion Engine > --- PROPULSION ------- Aluminum Leg Aluminum Leg > --- UTILITY ---------- Improved Heat Sink Small Storage Unit Improved Terrain Scanner > --- WEAPON ----------- Ion Cannon Ion Cannon > --- INVENTORY -------- Improved Ion Engine Aluminum Leg Beam Rifle Ion Cannon Ion Cannon Improved Grenade Launcher [Rating: 17] Favorites ----------- Power Light Ion Engine Engine Light Ion Engine Propulsion Aluminum Leg Leg Aluminum Leg Utility Small Storage Unit Device Improved Heat Sink Storage Small Storage Unit Weapon Ion Cannon Energy Cannon Ion Cannon Ballistic Gun Assault Rifle Launcher Improved Grenade Launcher Build | -11 -10 -9 -9 ------- Run | Scr Mat Mat Min Slots Evolved 2 | . . 2 . Power . | . . . . Propulsion . | . . . . Utility 2 | . . 2 . Weapon . | . . . . Parts Attached 18 | 7 . 6 5 Power 2 | 1 . . 1 Engine 2 | 1 . . 1 Core . | . . . . Reactor . | . . . . Propulsion 3 | 2 . . 1 Treads . | . . . . Leg 3 | 2 . . 1 Wheel . | . . . . Hover . | . . . . Flight . | . . . . Utility 6 | 2 . 1 3 Device 5 | 1 . 1 3 Storage 1 | 1 . . . Processor . | . . . . Hackware . | . . . . Protection . | . . . . Artifact . | . . . . Weapon 7 | 2 . 5 . Energy Gun . | . . . . Energy Cannon 3 | . . 3 . Ballistic Gun 3 | 2 . 1 . Ballistic Cannon . | . . . . Launcher 1 | . . 1 . Special Weapon . | . . . . Impact Weapon . | . . . . Slashing Weapon . | . . . . Piercing Weapon . | . . . . Special Melee Weapon . | . . . . Unidentified Prototypes 1 | . . 1 . Parts Lost 8 | . . . 8 Power 2 | . . . 2 Propulsion 3 | . . . 3 Utility 1 | . . . 1 Weapon 2 | . . . 2 Highest Loss Streak 5 | . . . 5 To Critical Strikes . | . . . . Average Slot Usage (%) 88 | . 100 86 86 Engine 11 | . 14 11 10 Leg 22 | . 28 22 21 Device 20 | . 14 22 21 Storage 11 | . 14 11 11 Energy Cannon 18 | . . 17 21 Ballistic Gun 4 | . 28 2 . Naked Turns . | . . . . Heaviest Build 22 | 13 13 22 22 Greatest Support 20 | 20 20 20 20 Greatest Overweight (x) 2 | . . 1 2 Average Overweight (x) . | . . . . Largest Inventory Capacity 8 | 8 8 8 8 Average Capacity 7 | 7 8 8 8 Most Carried 8 | 3 5 8 8 Average Carried 5 | 1 2 6 6 Final Capacity 8 | 8 8 8 8 Final Carried 8 | 2 5 8 7 Class Distribution -------------------- 100% | Mutant Dominant Class ---------------- Mutant | -10/Materials Mutant | -9/Materials Mutant | -9/Mines Resources | -11 -10 -9 -9 ----------- Run | Scr Mat Mat Min Matter Collected 463 | 324 . 50 89 Remotely . | . . . . Salvage Created 518 | 92 . 57 369 Parts 27 | 8 . 7 12 Haulers Intercepted . | . . . . Recyclers Shooed 1 | 1 . . . Parts Field Recycled . | . . . . Retrieved Matter . | . . . . Parts Self-Destructed . | . . . . Prevented . | . . . . Kills | -11 -10 -9 -9 ------- Run | Scr Mat Mat Min Combat Hostiles Destroyed 14 | . . 3 11 Cannons 11 | . . 1 10 AOE 2 | . . 2 . Classes Destroyed 6 | 2 . 2 2 Tunneler 4 | 2 . . 2 Recycler 2 | 1 . . 1 Swarmer 5 | . . 2 3 Grunt 3 | . . . 3 Sentry 1 | . . 1 . Assembled 5 | . . . 5 Best Kill Streak 5 | 3 . 3 5 Combat Bots Only 5 | . . 3 5 Max Kills in Single Turn 2 | 1 . 2 1 Gunslinging . | . . . . Exploded 2 | . . 2 . Melee . | . . . . Uniques/NPCs Destroyed . | . . . . Combat | -11 -10 -9 -9 -------- Run | Scr Mat Mat Min Damage Taken 1027 | . . 257 770 Core 272 | . . 62 210 Absorbed by Shields . | . . . . Core Remaining (%) 100 | 100 100 . . Volleys Fired 35 | 9 . 4 22 Largest 2 | 2 . 2 2 Hottest 120 | 40 . 120 120 Shots Fired 70 | 18 . 8 44 Gun 18 | 18 . . . Cannon 49 | . . 5 44 Launcher 3 | . . 3 . Special . | . . . . Kinetic 18 | 18 . . . Thermal 49 | . . 5 44 Explosive 3 | . . 3 . Electromagnetic . | . . . . Robot Hit Streak 11 | 11 . 2 8 Robot Miss Streak 5 | 1 . 5 2 Penetration Max . | . . . . Secondary Targets . | . . . . Shots Hit Robots 45 | 14 . 2 29 Core Hits 21 | 4 . 4 13 Critical Kills 1 | . . . 1 Critical Parts Destroyed . | . . . . Critical Strikes 1 | . . . 1 Meltdown 1 | . . . 1 Melee Attacks . | . . . . Impact . | . . . . Slashing . | . . . . Piercing . | . . . . Sneak Attacks . | . . . . Combat Hostiles . | . . . . Follow-up Attacks . | . . . . Damage Inflicted 1056 | 179 . 163 714 Guns 179 | 179 . . . Cannons 737 | . . 23 714 Explosions 140 | . . 140 . Melee . | . . . . Ramming . | . . . . Kinetic 179 | 179 . . . Thermal 737 | . . 23 714 Explosive 140 | . . 140 . Electromagnetic . | . . . . Impact . | . . . . Slashing . | . . . . Piercing . | . . . . Highest Corruption 3 | . . . 3 Average Corruption 3 | . . . 3 Corruption Purged . | . . . . Corruption Blocked . | . . . . Effects 2 | . . . 2 Message Errors 1 | . . . 1 Data Loss (minor) 1 | . . . 1 Overload Shots . | . . . . Overflow Damage 47 | . . 8 39 Projectiles 39 | . . . 39 Explosions 8 | . . 8 . Melee . | . . . . Knockbacks . | . . . . Impact . | . . . . Kinetic . | . . . . Secondary . | . . . . Self-Inflicted Damage 63 | . . 63 . Shots 2 | . . 2 . Rammed . | . . . . Targets Rammed 1 | . . . 1 Kicked 1 | . . . 1 Crushed . | . . . . Highest Temperature 379 | . . 113 379 Average Temperature 101 | . . 59 110 Received Heat Transfer 184 | . . 45 139 Siege Activations . | . . . . Robots Corrupted . | . . . . Combat Hostiles . | . . . . Parts Fried . | . . . . Impact Corruptions . | . . . . Robots Melted 1 | . . . 1 Combat Hostiles 1 | . . . 1 Parts Melted 2 | . . . 2 Heat Transferred 1184 | . . 37 1147 Parts Sabotaged . | . . . . Parts Stolen . | . . . . Parts Stripped . | . . . . Power Chain Reactions . | . . . . Missiles Intercepted . | . . . . Alert | -11 -10 -9 -9 ------- Run | Scr Mat Mat Min Peak Influence 209 | 15 31 209 155 Initial 81 | . 9 13 81 Average 94 | 6 16 96 123 Maximum Alert Level 1 | . . 1 . Low Security (%) 98 | 100 100 93 100 Level 1 1 | . . 6 . Level 2 . | . . . . Level 3 . | . . . . Level 4 . | . . . . Level 5 . | . . . . High Security . | . . . . Max Security . | . . . . Squads Dispatched 1 | . 1 . . Investigation 1 | . 1 . . Extermination . | . . . . Reinforcement . | . . . . Assault . | . . . . Garrison . | . . . . Intercept . | . . . . Searches Triggered . | . . . . Construction Impeded . | . . . . Haulers Reinforced . | . . . . Active Scanning Responses . | . . . . Cargo Convoy Interrupts . | . . . . Stealth | -11 -10 -9 -9 --------- Run | Scr Mat Mat Min Distress Signals . | . . . . Communications Jammed . | . . . . Distress Signals . | . . . . Times Spotted 28 | . 3 7 18 Peak Tracking Total 9 | . 3 5 9 Tactical Retreats 3 | . . 1 2 Traps | -11 -10 -9 -9 ------- Run | Scr Mat Mat Min Traps Triggered . | . . . . Indirectly . | . . . . Trap Hack Attempts . | . . . . Triggered . | . . . . Disarmed . | . . . . Reprogrammed . | . . . . Reused . | . . . . Traps Extracted . | . . . . Installed . | . . . . Triggered . | . . . . Machines | -11 -10 -9 -9 ---------- Run | Scr Mat Mat Min Machines Disabled 1 | . . . 1 Max in Single Turn 1 | . . . 1 Machines Sabotaged . | . . . . Garrisons Compromised . | . . . . Overloaded Fab Kills . | . . . . Hacking | -11 -10 -9 -9 --------- Run | Scr Mat Mat Min Machines Accessed 3 | . 2 1 . Terminals 2 | . 2 . . Fabricators . | . . . . Repair Stations . | . . . . Recycling Units 1 | . . 1 . Scanalyzers . | . . . . Garrison Access . | . . . . Total Hacks 6 | . 5 1 . Successful 5 | . 4 1 . Failed 1 | . 1 . . Catastrophic 1 | . 1 . . Database Lockouts . | . . . . Manual . | . . . . Terminals 5 | . 5 . . Fabricators . | . . . . Repair Stations . | . . . . Recycling Units 1 | . . 1 . Scanalyzers . | . . . . Garrison Access . | . . . . Terminal Hacks 4 | . 4 . . Level Access Points 1 | . 1 . . Branch Access Points 1 | . 1 . . Alert Level 1 | . 1 . . Dispatch Records 1 | . 1 . . Fabricator Hacks . | . . . . Repair Station Hacks . | . . . . Recycling Unit Hacks 1 | . . 1 . Report Inventory 1 | . . 1 . Scanalyzer . | . . . . Garrison Access Hacks . | . . . . Unauthorized Hacks . | . . . . Terminals . | . . . . Fabricators . | . . . . Repair Stations . | . . . . Recycling Units . | . . . . Scanalyzers . | . . . . Garrison Access . | . . . . Data Cores Recovered . | . . . . Used . | . . . . Hacking Detections 2 | . 1 1 . Full Trace Events 1 | . 1 . . Feedback Events . | . . . . Feedback Blocked . | . . . . Robot Schematics Acquired . | . . . . Robots Built . | . . . . Authchips . | . . . . Time . | . . . . Total Robot Build Rating . | . . . . Part Schematics Acquired . | . . . . Parts Built . | . . . . Authchips . | . . . . Time . | . . . . Total Part Build Rating . | . . . . Parts Repaired . | . . . . Time . | . . . . Parts Recycled . | . . . . Recycled Matter . | . . . . Retrieved Matter . | . . . . Retrieved Components . | . . . . Parts Scanalyzed . | . . . . Part Schematics Acquired . | . . . . Parts Damaged . | . . . . Bothacking | -11 -10 -9 -9 ------------ Run | Scr Mat Mat Min Used RIF Installer . | . . . . Robots Hacked . | . . . . Non-combat . | . . . . Combat . | . . . . Robot Hacks Applied . | . . . . Relay Couplers Released . | . . . . Fabnet Peak Effective % . | . . . . Robots Rewired . | . . . . Allies Hacked . | . . . . Hacks Repelled . | . . . . Allies | -11 -10 -9 -9 -------- Run | Scr Mat Mat Min Total Allies . | . . . . Largest Group . | . . . . Highest-Rated Group . | . . . . Highest-Rated Ally . | . . . . Total Orders . | . . . . Ally Attacks . | . . . . Total Damage . | . . . . Kills . | . . . . Allies Corrupted . | . . . . Allies Melted . | . . . . Intel | -11 -10 -9 -9 ------- Run | Scr Mat Mat Min Robot Analysis Total . | . . . . Derelict Logs Recovered . | . . . . Drone Launches . | . . . . Drone Recoveries . | . . . . Exploration | -11 -10 -9 -9 ------------- Run | Scr Mat Mat Min Turns Passed 1246 | 130 153 195 768 Spaces Moved 584 | 78 122 89 295 Core 12 | 12 . . . Treads . | . . . . Legs 572 | 66 122 89 295 Wheels . | . . . . Hover . | . . . . Flight . | . . . . Fastest Speed 50 | 50 120 120 120 Average Speed 162 | 109 120 178 189 Slowest Speed 260 | 120 120 190 260 Overloaded Moves . | . . . . Propulsion Burnouts . | . . . . Robots Hopped . | . . . . Cave-ins Triggered . | . . . . Exploration Rate (%) 26 | 4 28 10 64 Regions Visited 3 Branch Regions 1 Pre-discovered Areas . | . . . . Known Exits Taken 1 | . 1 . . Unknown Exits Taken 2 | 1 . 1 . Scrap Searched . | . . . . Spaces Dug . | . . . . Terrain Destroyed 46 | . . 40 6 Melee . | . . . . Projectile 9 | . . 3 6 AOE 37 | . . 37 . Terrain Rammed . | . . . . Walls Destroyed . | . . . . Machines Disabled . | . . . . Actions | -11 -10 -9 -9 --------- Run | Scr Mat Mat Min Total 815 | 106 128 120 461 Wait 141 | . 4 7 130 Move 581 | 77 121 88 295 Hop . | . . . . Pick Up 28 | 11 3 9 5 Fast Attach . | . . . . Attach 17 | 7 . 5 5 Detach 1 | . . 1 . Swap 1 | . . 1 . Drop 10 | 2 . 5 3 Fire 35 | 9 . 4 22 Melee . | . . . . Ram . | . . . . Kick 1 | . . . 1 Crush . | . . . . Escape Stasis . | . . . . Rewire . | . . . . Trap . | . . . . Miscellaneous . | . . . . Route ------- -11/Scrapyard -10/Materials (discovered 5 exits: *Mat x3 / *Min x2) -9/Materials -9/Mines History --------- Turn | Location | Event 35 | -11/Scrapyard | Discovered new exit (range 15) 131 | -11/Scrapyard | Entered Materials 161 | -10/Materials | Identified exit to Materials 222 | -10/Materials | Discovered new exit (range 12) 249 | -10/Materials | Identified exit to Mines 284 | -10/Materials | Entered another Materials area 284 | -9/Materials | Evolved 2 slots: Utility x2 342 | -9/Materials | Build established: Mutant 473 | -9/Materials | Discovered new exit (range 3) 479 | -9/Materials | Entered Mines 509 | -9/Mines | Met a Derelict bent on vengeance 1169 | -9/Mines | Assembled infested the area 1174 | -9/Mines | Assisted by a Guerilla fighting off Assembled 1245 | -9/Mines | Core integrity fell below 50% 1247 | -9/Mines | Self-destructed Last Messages --------------- as-20466 destroyed. Imp. Terrain Scanner destroyed. System corrupted by crushing effect (+3). as-06331 destroyed. as-38607 destroyed. as-55511 destroyed. Destroyed Asb. F-torch. as-39739 destroyed. System corrupted: Component data lost. Acquired Imp. Terrain Scanner. Acquired 10 matter. QZEYD=8ZI,:L9S1BH9WA&Q:LHXWTCUGPP80 Ion Cannon destroyed. The unstable cave ceiling collapses. Lgt. Ion Engine destroyed. The unstable cave ceiling collapses. Ion Cannon destroyed. The unstable cave ceiling collapses. Aluminum Leg destroyed. The unstable cave ceiling collapses. Map ----- +----------------------------------------------------+ | ????????????????## ???? | | ???????????????## ????? | | ????????????#### ????? | | ????????????? "????# | | ??????????????? ##???? | | ??????????#?????# ##??? | | ?????????????????# #??? | | ???###??##????????# *% #??? | | ??## #???????#??????#| %#???? | | ??# ##???????????##%###???? | | ??# ##?#????#???#%=#?????? | | ???# #####???####%%##????? | | ???## ##??# % #????? | | ?????# #??# #????? | | ?????# ##?# ## ##???? | | ????## ##### ## ##??? | | ???## ## ##?? | | #### # d ##? | | # ########## d #? | | ##?????### ## | | ###??#?# # | | ####??## # | | ##?# # | | ### | | ##### ## | | ###??## ## @ | | ##???### ### | | ##?#??#### ##?# # | | ##????#?#####?# | | ## ##????????#??# # | | #### ###???????##### ## | | ?#?# ##?#?#???#???### ###? | | ??## ##???????##???###??# | | ??## #???????###???#???? | | #?## ##????????????????? | | ### ###????????????????? | | ##???#????????????#?? | | ##???????????????????? | | #####???????????????#????? | | #????????#?#????#?????????? | | ##???#???????????????#?????? | | #??????????????????????????? | | ##???????????????#????????? | | #?????????????????????????? | | ##?????????????????????????? | | ?##??????????????????????????? | | ?????????????????????????????? | | | | | | | +----------------------------------------------------+ Best States ------------- Heat Dissipation 42 Energy Generation 10 Energy Capacity 125 Matter Stores 300 Matter Capacity 300 Sight Range 16 Terrain Scan Range 16 Terrain Scan Density 10 Evasion (%) 55 Item Schematics ----------------- None Robot Schematics ------------------ None Fabricated ------------ Nothing Alien Tech Used ----------------- None Achievements -------------- None Challenges ------------ None Game ------ Seed SeismicKineticSink Manual? 0 Play Time 00:08:23 Cumulative 27.7 hours Start 2022.12.11 @ 00:25:02 End 2022.12.11 @ 00:33:05 Sessions 1 Manual Loads 0 Difficulty Rogue Special Mode None Game No. 45 Rogue 45 Adventurer 0 Explorer 0 Win Type - Total 0 Types 0/0/0/0/0/0/0/0/0 Lore% 23 Gallery% 29 Achievement% 26 Wizard Run 0 Options --------- ASCII 0 Keyboard 0 Movement Arrows Keybinds 0 Fullscreen 2 Font 16/SmallcapsGlow Map View 76x50 Tactical HUD 0 Map Filters NONE Filters NONE Steam 1 RUN: f6606c2c-06e6-4473-bbd6-07e565523279